lending/lending_fUSD_20250121
["ID","MTS","AMOUNT","RATE_DAILY","PERIOD"]
[349808630,1737439838237,-985.9278,0.00020801,2]
[349808631,1737439838247,-6018.43499126,0.00020801,2]
[349808632,1737439838259,-1228.87640874,0.00020801,2]
[349808633,1737439838272,-152.02777672,0.00020873,2]
[349808634,1737439838492,-161.82668815,0.00020873,2]
[349808635,1737439838502,-6132.73441747,0.000209,2]
[349808636,1737439838515,-534.72144551,0.000209,2]
[349808637,1737439838529,-10000.0,0.000209,2]
[349808638,1737439838549,-735.15365519,0.000209,2]
[349808639,1737439838561,-2597.6150036,0.000209,2]
[349808640,1737439838574,-122215.62620915,0.000209,2]
[349808641,1737439838584,-1000.0,0.000209,2]
[349808642,1737439838594,-708.5998,0.000209,2]
[349808643,1737439838604,-5000.0,0.000209,2]
[349808644,1737439838615,-202.21048096,0.000209,2]
[349808646,1737439838624,-6751.908,0.00020901,2]
[349808648,1737439838634,-6959.509,0.00020901,2]
[349808650,1737439838644,-500.0,0.0002092,2]
[349808652,1737439838654,-500.0,0.0002092,2]
[349808654,1737439838663,-500.0,0.0002092,2]
[349808656,1737439838673,-500.0,0.0002092,2]
[349808657,1737439838683,-512.70171993,0.0002092,2]
[349808659,1737439838694,-500.0,0.0002092,2]
[349808661,1737439838703,-500.0,0.0002092,2]
[349808663,1737439838713,-519.7869071,0.0002092,2]
[349808665,1737439838723,-500.0,0.00020921,2]
[349808666,1737439838733,-500.0,0.00020921,2]
[349808668,1737439838743,-500.0,0.00020921,2]
[349808670,1737439838752,-500.0,0.00020921,2]
[349808671,1737439838762,-500.0,0.00020921,2]
[349808672,1737439838772,-500.0,0.00020921,2]
[349808673,1737439838782,-500.0,0.00020921,2]
[349808674,1737439838792,-500.0,0.00020921,2]
[349808675,1737439838803,-500.0,0.00020921,2]
[349808676,1737439838820,-500.0,0.00020921,2]
[349808677,1737439838838,-500.0,0.00020921,2]
[349808678,1737439838849,-500.0,0.00020921,2]
[349808679,1737439838860,-500.0,0.00020921,2]
[349808680,1737439838870,-500.0,0.00020921,2]
[349808681,1737439838880,-500.0,0.00020921,2]
[349808682,1737439838890,-500.0,0.00020921,2]
[349808683,1737439838901,-500.0,0.00020921,2]
[349808684,1737439838913,-740.66,0.00020921,2]
[349808685,1737439838923,-512.43,0.00020921,2]
[349808686,1737439838933,-500.0,0.00020921,2]
[349808687,1737439838946,-500.0,0.00020921,2]
[349808688,1737439838957,-500.0,0.00020921,2]
[349808689,1737439838967,-500.0,0.00020921,2]
[349808690,1737439838977,-501.34,0.00020921,2]
[349808691,1737439838987,-500.0,0.00020921,2]
[349808692,1737439838997,-500.0,0.00020921,2]
[349808693,1737439839007,-500.0,0.00020921,2]
[349808694,1737439839016,-500.0,0.00020921,2]
[349808695,1737439839026,-500.0,0.00020921,2]
[349808696,1737439839034,-500.0,0.00020921,2]
[349808697,1737439839045,-500.0,0.00020921,2]
[349808698,1737439839055,-511.11,0.00020921,2]
[349808699,1737439839065,-500.0,0.00020921,2]
[349808700,1737439839076,-500.0,0.00020921,2]
[349808701,1737439839086,-616.05,0.00020921,2]
[349808702,1737439839096,-403.33739336,0.00020921,2]
[349808703,1737439839106,-202.21048092,0.00020959,2]
[349808704,1737439839116,-151.02676963,0.00020973,2]
[349808705,1737439839126,-5214.8237,0.00020986,2]
[349808706,1737439839135,-397.13,0.00020989,2]
[349808707,1737439839145,-3685.40054648,0.00020997,2]
[349808708,1737439839155,-487.897678,0.00020999,2]
[349808709,1737439839164,-500.0,0.00020999,2]
[349808710,1737439839174,-500.0,0.00020999,2]
[349808711,1737439839185,-500.0,0.00020999,2]
[349808712,1737439839200,-255.044765,0.00020999,2]
[349808713,1737439839209,-500.0,0.00020999,2]
[349808714,1737439839219,-526.55,0.00020999,2]
[349808715,1737439839228,-500.0,0.00020999,2]
[349808716,1737439839237,-887.08,0.00020999,2]
[349808717,1737439839247,-835.6,0.00020999,2]
[349808718,1737439839257,-500.0,0.00020999,2]
[349808719,1737439839267,-500.0,0.00020999,2]
[349808720,1737439839277,-996.82,0.00020999,2]
[349808721,1737439839287,-500.0,0.00020999,2]
[349808722,1737439839297,-500.0,0.00020999,2]
[349808723,1737439839307,-540.9,0.00020999,2]
[349808724,1737439839317,-500.0,0.00020999,2]
[349808725,1737439839327,-541.08,0.00020999,2]
[349808726,1737439839337,-500.0,0.00020999,2]
[349808727,1737439839347,-799.31,0.00020999,2]
[349808728,1737439839356,-500.0,0.00021,2]
[349808729,1737439839366,-500.0,0.00021,2]
[349808730,1737439839375,-500.0,0.00021,2]
[349808731,1737439839385,-500.0,0.00021,2]
[349808732,1737439839394,-500.0,0.00021,2]
[349808733,1737439839405,-500.0,0.00021,2]
[349808734,1737439839415,-500.0,0.00021,2]
[349808735,1737439839425,-500.0,0.00021,2]
[349808736,1737439839435,-500.0,0.00021,2]
[349808737,1737439839444,-500.0,0.00021,2]
[349808738,1737439839454,-500.0,0.00021,2]
[349808739,1737439839464,-500.0,0.00021,2]
[349808740,1737439839476,-500.0,0.00021,2]
[349808741,1737439839485,-500.0,0.00021,2]
[349808742,1737439839495,-500.0,0.00021,2]
[349808743,1737439839505,-560.88786212,0.00021,2]
[349808744,1737439839514,-500.0,0.00021,2]
[349808745,1737439839524,-500.0,0.00021,2]
[349808746,1737439839533,-207.94743728,0.00021,2]
[349808747,1737439839543,-511.53706025,0.00021,2]
[349808748,1737439839553,-500.0,0.00021,2]
[349808749,1737439839563,-302.4569468,0.00021,2]
[349808750,1737439839573,-591.89,0.00021,2]
[349808751,1737439839582,-500.0,0.00021,2]
[349808752,1737439839592,-500.0,0.00021,2]
[349808753,1737439839602,-500.0,0.00021,2]
[349808754,1737439839612,-500.0,0.00021,2]
[349808755,1737439839621,-500.0,0.00021,2]
[349808756,1737439839631,-500.0,0.00021,2]
[349808757,1737439839641,-500.0,0.00021,2]
[349808758,1737439839650,-490.0,0.00021,2]
[349808759,1737439839664,-500.0,0.00021,2]
[349808760,1737439839673,-500.0,0.00021,2]
[349808761,1737439839683,-500.0,0.00021,2]
[349808762,1737439839693,-500.0,0.00021,2]
[349808763,1737439839702,-500.0,0.00021,2]
[349808764,1737439839712,-500.0,0.00021,2]
[349808765,1737439839723,-500.0,0.00021,2]
[349808766,1737439839732,-500.0,0.00021,2]
[349808767,1737439839742,-526.75,0.00021,2]
[349808768,1737439839752,-500.0,0.00021,2]
[349808769,1737439839762,-500.0,0.00021,2]
[349808770,1737439839771,-554.29,0.00021,2]
[349808771,1737439839781,-500.0,0.00021,2]
[349808772,1737439839790,-500.0,0.00021,2]
[349808773,1737439839800,-500.0,0.00021,2]
[349808774,1737439839811,-500.0,0.00021,2]
[349808775,1737439839821,-500.0,0.00021,2]
[349808776,1737439839831,-500.0,0.00021,2]
[349808777,1737439839841,-500.0,0.00021,2]
[349808778,1737439839852,-500.0,0.00021,2]
[349808779,1737439839862,-500.0,0.00021,2]
[349808780,1737439839872,-500.0,0.00021,2]
[349808781,1737439839882,-500.0,0.00021,2]
[349808782,1737439839893,-500.0,0.00021,2]
[349808783,1737439839903,-500.0,0.00021,2]
[349808784,1737439839917,-308.89069824,0.00021,2]
[349808785,1737439839927,-500.0,0.00021,2]
[349808786,1737439839937,-202.21048092,0.00021018,2]
[349808787,1737439839946,-2224.0,0.0002106,2]
[349808788,1737439839956,-4345.72351762,0.00021073,2]
[349808789,1737439839965,-182.7459,0.00021074,2]
[349808790,1737439839975,-202.21048092,0.00021076,2]
[349808791,1737439839984,-202.21048092,0.00021135,2]
[349808792,1737439839993,-397.13,0.00021162,2]
[349808793,1737439840003,-397.13,0.00021163,2]
[349808794,1737439840012,-397.13,0.00021163,2]
[349808795,1737439840022,-397.13,0.00021164,2]
[349808796,1737439840032,-4345.72351754,0.00021165,2]
[349808797,1737439840042,-547.72,0.00021172,2]
[349808798,1737439840051,-500.0,0.00021172,2]
[349808799,1737439840062,-500.0,0.00021172,2]
[349808800,1737439840072,-500.0,0.00021172,2]
[349808801,1737439840081,-500.0,0.00021172,2]
[349808802,1737439840092,-842.26,0.00021172,2]
[349808803,1737439840101,-500.0,0.00021172,2]
[349808804,1737439840111,-500.0,0.00021172,2]
[349808805,1737439840121,-500.0,0.00021172,2]
[349808806,1737439840131,-500.0,0.00021172,2]
[349808807,1737439840140,-500.0,0.00021172,2]
[349808808,1737439840150,-500.0,0.00021173,2]
[349808809,1737439840163,-500.0,0.00021173,2]
[349808810,1737439840172,-161.02091044,0.00021173,2]
[349808811,1737439840182,-500.42304367,0.00021173,2]
[349808812,1737439840192,-306.42217223,0.00021173,2]
[349808813,1737439840203,-204.59014576,0.00021173,2]
[349808814,1737439840213,-500.0,0.00021173,2]
[349808815,1737439840223,-502.08731051,0.00021173,2]
[349808816,1737439840233,-500.0,0.00021173,2]
[349808817,1737439840243,-500.0,0.00021173,2]
[349808818,1737439840253,-500.0,0.00021173,2]
[349808819,1737439840263,-500.0,0.00021173,2]
[349808820,1737439840273,-500.69109788,0.00021173,2]
[349808821,1737439840283,-518.30301328,0.00021173,2]
[349808822,1737439840293,-500.0,0.00021173,2]
[349808823,1737439840303,-500.0,0.00021173,2]
[349808824,1737439840314,-176.01624581,0.00021173,2]
[349808825,1737439840325,-500.0,0.00021173,2]
[349808826,1737439840335,-500.0,0.00021173,2]
[349808827,1737439840344,-500.0,0.00021173,2]
[349808828,1737439840355,-500.0,0.00021173,2]
[349808829,1737439840364,-623.57,0.00021173,2]
[349808830,1737439840374,-467.38564417,0.00021173,2]
[349808831,1737439840383,-500.0,0.00021173,2]
[349808832,1737439840393,-506.35868684,0.00021173,2]
[349808833,1737439840402,-500.0,0.00021173,2]
[349808834,1737439840417,-500.0,0.00021173,2]
[349808835,1737439840427,-568.28,0.00021173,2]
[349808836,1737439840436,-500.0,0.00021173,2]
[349808837,1737439840446,-500.0,0.00021173,2]
[349808838,1737439840456,-500.0,0.00021173,2]
[349808839,1737439840465,-500.0,0.00021173,2]
[349808840,1737439840475,-500.0,0.00021173,2]
[349808841,1737439840485,-500.0,0.00021173,2]
[349808842,1737439840494,-527.47229328,0.00021173,2]
[349808843,1737439840504,-500.0,0.00021173,2]
[349808844,1737439840513,-500.0,0.00021173,2]
[349808845,1737439840522,-604.0794645,0.00021173,2]
[349808846,1737439840532,-500.0,0.00021173,2]
[349808847,1737439840542,-500.0,0.00021173,2]
[349808848,1737439840551,-500.0,0.00021173,2]
[349808849,1737439840560,-500.0,0.00021173,2]
[349808850,1737439840569,-500.0,0.00021173,2]
[349808851,1737439840579,-500.0,0.00021173,2]
[349808852,1737439840588,-500.0,0.00021173,2]
[349808853,1737439840597,-500.0,0.00021173,2]
[349808854,1737439840607,-500.0,0.00021173,2]
[349808855,1737439840616,-500.0,0.00021173,2]
[349808856,1737439840626,-503.28669686,0.00021173,2]
[349808857,1737439840637,-500.0,0.00021173,2]
[349808858,1737439840646,-500.0,0.00021173,2]
[349808859,1737439840655,-500.0,0.00021173,2]
[349808860,1737439840666,-500.0,0.00021173,2]
[349808861,1737439840675,-500.0,0.00021173,2]
[349808862,1737439840684,-500.0,0.00021173,2]
[349808863,1737439840693,-500.0,0.00021173,2]
[349808864,1737439840703,-500.0,0.00021173,2]
[349808865,1737439840712,-500.0,0.00021173,2]
[349808866,1737439840722,-500.0,0.00021173,2]
[349808867,1737439840732,-500.0,0.00021173,2]
[349808868,1737439840741,-488.32144201,0.00021173,2]
[349808869,1737439840750,-500.0,0.00021173,2]
[349808870,1737439840760,-500.0,0.00021173,2]
[349808871,1737439840769,-500.0,0.00021173,2]
[349808872,1737439840778,-500.0,0.00021173,2]
[349808873,1737439840788,-500.0,0.00021173,2]
[349808874,1737439840798,-577.42,0.00021173,2]
[349808875,1737439840809,-500.0,0.00021173,2]
[349808876,1737439840822,-500.0,0.00021173,2]
[349808877,1737439840831,-500.0,0.00021173,2]
[349808878,1737439840841,-200.0,0.00021173,2]
[349808879,1737439840852,-500.0,0.00021173,2]
[349808880,1737439840862,-500.0,0.00021173,2]
[349808881,1737439840873,-529.22238899,0.00021173,2]
[349808882,1737439840882,-519.11009286,0.00021173,2]
[349808883,1737439840894,-500.0,0.00021173,2]
[349808884,1737439840904,-500.0,0.00021173,2]
[349808885,1737439840919,-292.15543695,0.00021173,2]
[349808886,1737439840929,-313.64817037,0.00021173,2]
[349808887,1737439840939,-618.51,0.00021173,2]
[349808888,1737439840949,-500.0,0.00021173,2]
[349808889,1737439840959,-500.0,0.00021173,2]
[349808890,1737439840969,-500.0,0.00021173,2]
[349808891,1737439840979,-500.0,0.00021173,2]
[349808892,1737439840989,-500.0,0.00021173,2]
[349808893,1737439840998,-285.28580577,0.00021173,2]
[349808894,1737439841008,-547.03,0.00021173,2]
[349808895,1737439841018,-512.99303864,0.00021173,2]
[349808896,1737439841028,-500.0,0.00021173,2]
[349808897,1737439841038,-500.0,0.00021173,2]
[349808898,1737439841047,-521.5,0.00021173,2]
[349808899,1737439841057,-500.0,0.00021173,2]
[349808900,1737439841066,-500.0,0.00021173,2]
[349808901,1737439841075,-500.0,0.00021173,2]
[349808902,1737439841084,-500.0,0.00021173,2]
[349808903,1737439841094,-500.0,0.00021173,2]
[349808904,1737439841103,-500.0,0.00021173,2]
[349808905,1737439841112,-500.0,0.00021173,2]
[349808906,1737439841121,-500.0,0.00021173,2]
[349808907,1737439841131,-585.13718984,0.00021173,2]
[349808908,1737439841140,-500.0,0.00021173,2]
[349808909,1737439841149,-500.0,0.00021173,2]
[349808910,1737439841163,-500.0,0.00021173,2]
[349808911,1737439841173,-500.0,0.00021173,2]
[349808912,1737439841182,-500.0,0.00021173,2]
[349808913,1737439841192,-623.96634354,0.00021173,2]
[349808914,1737439841202,-500.0,0.00021173,2]
[349808915,1737439841212,-500.0,0.00021173,2]
[349808916,1737439841221,-536.40177307,0.00021173,2]
[349808917,1737439841231,-500.0,0.00021173,2]
[349808918,1737439841240,-507.09233453,0.00021173,2]
[349808919,1737439841250,-500.0,0.00021173,2]
[349808920,1737439841259,-506.78946765,0.00021173,2]
[349808921,1737439841268,-296.74194142,0.00021173,2]
[349808922,1737439841278,-504.03284647,0.00021173,2]
[349808923,1737439841287,-500.0,0.00021173,2]
[349808924,1737439841296,-500.0,0.00021173,2]
[349808925,1737439841305,-499.92743079,0.00021173,2]
[349808926,1737439841315,-510.43946695,0.00021173,2]
[349808927,1737439841324,-500.0,0.00021173,2]
[349808928,1737439841333,-500.0,0.00021173,2]
[349808929,1737439841342,-500.0,0.00021173,2]
[349808930,1737439841352,-500.0,0.00021173,2]
[349808931,1737439841361,-500.0,0.00021173,2]
[349808932,1737439841371,-595.68,0.00021173,2]
[349808933,1737439841380,-520.35132754,0.00021173,2]
[349808934,1737439841389,-502.26440636,0.00021173,2]
[349808935,1737439841399,-500.0,0.00021173,2]
[349808936,1737439841412,-500.0,0.00021173,2]
[349808937,1737439841421,-506.42984293,0.00021173,2]
[349808938,1737439841431,-500.0,0.00021173,2]
[349808939,1737439841440,-500.0,0.00021173,2]
[349808940,1737439841450,-500.0,0.00021173,2]
[349808941,1737439841460,-500.0,0.00021173,2]
[349808942,1737439841469,-500.0,0.00021173,2]
[349808943,1737439841479,-500.0,0.00021173,2]
[349808944,1737439841488,-500.0,0.00021173,2]
[349808945,1737439841498,-500.0,0.00021173,2]
[349808946,1737439841508,-500.0,0.00021173,2]
[349808947,1737439841517,-500.0,0.00021173,2]
[349808948,1737439841527,-500.0,0.00021173,2]
[349808949,1737439841536,-500.0,0.00021173,2]
[349808950,1737439841545,-594.3,0.00021173,2]
[349808951,1737439841555,-500.0,0.00021173,2]
[349808952,1737439841566,-500.0,0.00021173,2]
[349808953,1737439841576,-500.0,0.00021173,2]
[349808954,1737439841586,-500.0,0.00021173,2]
[349808955,1737439841596,-500.0,0.00021173,2]
[349808956,1737439841607,-522.87747856,0.00021173,2]
[349808957,1737439841617,-500.0,0.00021173,2]
[349808958,1737439841627,-500.0,0.00021173,2]
[349808959,1737439841638,-500.0,0.00021173,2]
[349808960,1737439841649,-502.91136451,0.00021173,2]
[349808961,1737439841666,-509.43940537,0.00021173,2]
[349808962,1737439841677,-501.416325,0.00021173,2]
[349808963,1737439841687,-501.92140607,0.00021173,2]
[349808964,1737439841698,-500.0,0.00021173,2]
[349808965,1737439841708,-500.0,0.00021173,2]
[349808966,1737439841718,-506.76622372,0.00021173,2]
[349808967,1737439841729,-505.26305459,0.00021173,2]
[349808968,1737439841739,-500.0,0.00021173,2]
[349808969,1737439841751,-501.17242618,0.00021173,2]
[349808970,1737439841761,-500.0,0.00021173,2]
[349808971,1737439841771,-500.0,0.00021173,2]
[349808972,1737439841780,-500.0,0.00021173,2]
[349808973,1737439841790,-438.15451488,0.00021173,2]
[349808974,1737439841799,-500.0,0.00021173,2]
[349808975,1737439841812,-500.0,0.00021173,2]
[349808976,1737439841822,-500.0,0.00021173,2]
[349808977,1737439841831,-500.0,0.00021173,2]
[349808978,1737439841841,-500.0,0.00021173,2]
[349808979,1737439841852,-523.45856885,0.00021173,2]
[349808980,1737439841861,-500.0,0.00021173,2]
[349808981,1737439841871,-500.0,0.00021173,2]
[349808982,1737439841881,-500.0,0.00021173,2]
[349808983,1737439841891,-500.0,0.00021173,2]
[349808984,1737439841901,-500.0,0.00021173,2]
[349808985,1737439841914,-500.0,0.00021173,2]
[349808986,1737439841923,-500.0,0.00021173,2]
[349808987,1737439841932,-500.0,0.00021173,2]
[349808988,1737439841942,-500.0,0.00021173,2]
[349808989,1737439841951,-500.0,0.00021173,2]
[349808990,1737439841960,-500.0,0.00021173,2]
[349808991,1737439841969,-500.0,0.00021173,2]
[349808992,1737439841979,-500.0,0.00021173,2]
[349808993,1737439841989,-500.0,0.00021173,2]
[349808994,1737439841998,-500.0,0.00021173,2]
[349808995,1737439842008,-598.54,0.00021173,2]
[349808996,1737439842018,-500.0,0.00021173,2]
[349808997,1737439842027,-500.0,0.00021173,2]
[349808998,1737439842039,-500.0,0.00021173,2]
[349808999,1737439842048,-500.0,0.00021173,2]
[349809000,1737439842058,-500.0,0.00021173,2]
[349809001,1737439842067,-500.0,0.00021173,2]
[349809002,1737439842078,-500.0,0.00021173,2]
[349809003,1737439842087,-500.0,0.00021173,2]
[349809004,1737439842097,-613.78,0.00021173,2]
[349809005,1737439842107,-500.0,0.00021173,2]
[349809006,1737439842116,-502.861357,0.00021173,2]
[349809007,1737439842126,-500.0,0.00021173,2]
[349809008,1737439842136,-331.63006756,0.00021173,2]
[349809009,1737439842145,-500.0,0.00021173,2]
[349809010,1737439842155,-500.0,0.00021173,2]
[349809011,1737439842167,-500.0,0.00021173,2]
[349809012,1737439842179,-500.0,0.00021173,2]
[349809013,1737439842189,-500.0,0.00021173,2]
[349809014,1737439842199,-564.33,0.00021173,2]
[349809015,1737439842209,-500.0,0.00021173,2]
[349809016,1737439842218,-503.83,0.00021173,2]
[349809017,1737439842228,-500.0,0.00021173,2]
[349809018,1737439842239,-500.0,0.00021173,2]
[349809019,1737439842248,-500.0,0.00021173,2]
[349809020,1737439842257,-500.0,0.00021173,2]
[349809021,1737439842267,-1099.7,0.00021173,2]
[349809022,1737439842276,-500.0,0.00021173,2]
[349809023,1737439842285,-500.0,0.00021173,2]
[349809024,1737439842294,-630.88186617,0.00021173,2]
[349809025,1737439842303,-500.0,0.00021173,2]
[349809026,1737439842313,-500.0,0.00021173,2]
[349809027,1737439842322,-510.6,0.00021173,2]
[349809028,1737439842331,-500.0,0.00021173,2]
[349809029,1737439842341,-500.0,0.00021173,2]
[349809030,1737439842351,-403.82279563,0.00021173,2]
[349809031,1737439842360,-507.7114738,0.00021173,2]
[349809032,1737439842369,-500.0,0.00021173,2]
[349809033,1737439842378,-500.0,0.00021173,2]
[349809034,1737439842387,-500.0,0.00021173,2]
[349809035,1737439842396,-500.0,0.00021173,2]
[349809036,1737439842406,-500.0,0.00021173,2]
[349809037,1737439842416,-500.0,0.00021173,2]
[349809038,1737439842425,-500.0,0.00021173,2]
[349809039,1737439842435,-500.0,0.00021173,2]
[349809040,1737439842444,-649.94,0.00021173,2]
[349809041,1737439842455,-500.0,0.00021173,2]
[349809042,1737439842464,-500.0,0.00021173,2]
[349809043,1737439842473,-1182.45,0.00021173,2]
[349809044,1737439842482,-500.0,0.00021173,2]
[349809045,1737439842491,-500.0,0.00021173,2]
[349809046,1737439842500,-500.0,0.00021173,2]
[349809047,1737439842509,-500.0,0.00021173,2]
[349809048,1737439842518,-500.0,0.00021173,2]
[349809049,1737439842527,-500.0,0.00021173,2]
[349809050,1737439842537,-500.0,0.00021173,2]
[349809051,1737439842546,-500.0,0.00021173,2]
[349809052,1737439842555,-500.0,0.00021173,2]
[349809053,1737439842565,-500.0,0.00021173,2]
[349809054,1737439842574,-621.6,0.00021173,2]
[349809055,1737439842584,-500.0,0.00021173,2]
[349809056,1737439842593,-500.0,0.00021173,2]
[349809057,1737439842602,-500.0,0.00021173,2]
[349809058,1737439842611,-638.77765656,0.00021173,2]
[349809059,1737439842620,-500.0,0.00021173,2]
[349809060,1737439842630,-500.0,0.00021173,2]
[349809061,1737439842639,-500.0,0.00021173,2]
[349809062,1737439842648,-757.9,0.00021173,2]
[349809063,1737439842804,-589.47,0.00021173,2]
[349809064,1737439842814,-502.78833435,0.00021173,2]
[349809065,1737439842826,-500.0,0.00021173,2]
[349809066,1737439842835,-623.72,0.00021173,2]
[349809067,1737439842844,-500.0,0.00021173,2]
[349809068,1737439842853,-500.0,0.00021173,2]
[349809069,1737439842864,-500.0,0.00021173,2]
[349809070,1737439842873,-500.0,0.00021173,2]
[349809071,1737439842883,-500.0,0.00021173,2]
[349809072,1737439842893,-500.0,0.00021173,2]
[349809073,1737439842902,-500.0,0.00021173,2]
[349809074,1737439842914,-500.0,0.00021173,2]
[349809075,1737439842923,-500.0,0.00021173,2]
[349809076,1737439842932,-500.0,0.00021173,2]
[349809077,1737439842942,-500.0,0.00021173,2]
[349809078,1737439842951,-500.0,0.00021173,2]
[349809079,1737439842961,-500.0,0.00021173,2]
[349809080,1737439842970,-500.0,0.00021173,2]
[349809081,1737439842979,-564.75919668,0.00021173,2]
[349809082,1737439842988,-500.0,0.00021173,2]
[349809083,1737439842997,-500.0,0.00021173,2]
[349809084,1737439843007,-500.0,0.00021173,2]
[349809085,1737439843016,-618.5,0.00021173,2]
[349809086,1737439843025,-500.0,0.00021173,2]
[349809087,1737439843034,-500.0,0.00021173,2]
[349809088,1737439843044,-559.49076725,0.00021173,2]
[349809089,1737439843054,-509.42,0.00021173,2]
[349809090,1737439843064,-500.0,0.00021173,2]
[349809091,1737439843074,-500.0,0.00021173,2]
[349809092,1737439843084,-500.0,0.00021173,2]
[349809094,1737439843095,-500.0,0.00021173,2]
[349809095,1737439843105,-500.0,0.00021173,2]
[349809096,1737439843115,-100603.9945,0.00021174,2]
[349809097,1737439843125,-195.67973528,0.00021174,2]
[349809098,1737439843135,-4345.61106225,0.0002118,2]
[349809099,1737439843145,-500.0,0.00021194,2]
[349809100,1737439843154,-620.97,0.00021194,2]
[349809101,1737439843165,-217.60845804,0.00021194,2]
[349809102,1737439843174,-202.21048092,0.00021194,2]
[349809103,1737439843184,-500.0,0.00021195,2]
[349809104,1737439843194,-500.0,0.00021195,2]
[349809105,1737439843203,-500.0,0.00021195,2]
[349809106,1737439843213,-500.0,0.00021195,2]
[349809107,1737439843222,-500.0,0.00021195,2]
[349809108,1737439843231,-500.0,0.00021195,2]
[349809109,1737439843241,-500.0,0.00021195,2]
[349809110,1737439843250,-500.0,0.00021195,2]
[349809111,1737439843259,-500.0,0.00021195,2]
[349809112,1737439843270,-500.0,0.00021195,2]
[349809113,1737439843280,-500.0,0.00021195,2]
[349809114,1737439843290,-500.0,0.00021195,2]
[349809115,1737439843300,-500.0,0.00021195,2]
[349809116,1737439843310,-500.0,0.00021195,2]
[349809117,1737439843320,-500.0,0.00021195,2]
[349809118,1737439843330,-500.0,0.00021195,2]
[349809119,1737439843340,-740.66,0.00021195,2]
[349809120,1737439843350,-512.43,0.00021195,2]
[349809121,1737439843360,-500.0,0.00021195,2]
[349809122,1737439843369,-500.0,0.00021195,2]
[349809123,1737439843378,-548.96,0.00021195,2]
[349809124,1737439843387,-500.0,0.00021195,2]
[349809125,1737439843396,-501.34,0.00021195,2]
[349809126,1737439843406,-500.0,0.00021195,2]
[349809127,1737439843418,-500.0,0.00021195,2]
[349809128,1737439843428,-500.0,0.00021195,2]
[349809129,1737439843437,-500.0,0.00021195,2]
[349809130,1737439843446,-500.0,0.00021195,2]
[349809131,1737439843455,-511.11,0.00021195,2]
[349809132,1737439843465,-500.0,0.00021195,2]
[349809133,1737439843474,-500.0,0.00021195,2]
[349809134,1737439843483,-616.05,0.00021195,2]
[349809135,1737439843492,-202.21048092,0.00021253,2]
[349809136,1737439843502,-4345.72351754,0.00021257,2]
[349809137,1737439843512,-487.897678,0.00021273,2]
[349809138,1737439843521,-500.0,0.00021273,2]
[349809139,1737439843531,-500.0,0.00021273,2]
[349809140,1737439843540,-500.0,0.00021273,2]
[349809141,1737439843550,-255.044765,0.00021273,2]
[349809142,1737439843559,-500.0,0.00021273,2]